fUST/lending_fUST_20250906
["ID","MTS","AMOUNT","RATE_DAILY","PERIOD"]
[383864909,1757147451210,-480.0,0.00013972,2]
[383864910,1757147451220,-891.07,0.00013972,2]
[383864911,1757147451229,-480.0,0.00013972,2]
[383864912,1757147451239,-705.71,0.00013972,2]
[383864913,1757147451248,-480.0,0.00013972,2]
[383864914,1757147451258,-482.35683221,0.00013972,2]
[383864915,1757147451267,-480.0,0.00013972,2]
[383864916,1757147451277,-536.6,0.00013972,2]
[383864917,1757147451286,-480.0,0.00013972,2]
[383864918,1757147451296,-480.0,0.00013972,2]
[383864919,1757147451305,-2032.48,0.00013972,2]
[383864920,1757147451315,-1902.79,0.00013972,2]
[383864921,1757147451324,-480.0,0.00013972,2]
[383864922,1757147451333,-480.0,0.00013972,2]
[383864923,1757147451342,-256.94695883,0.00013972,2]
[383864924,1757147451352,-583.06604095,0.00013972,2]
[383864925,1757147451361,-480.0,0.00013972,2]
[383864926,1757147451371,-736.13,0.00013972,2]
[383864927,1757147451381,-480.0,0.00013972,2]
[383864928,1757147451390,-480.0,0.00013972,2]
[383864929,1757147451399,-480.0,0.00013972,2]
[383864930,1757147451408,-480.0,0.00013972,2]
[383864931,1757147451418,-480.0,0.00013972,2]
[383864932,1757147451428,-480.0,0.00013972,2]
[383864933,1757147451437,-480.0,0.00013972,2]
[383864934,1757147451447,-481.66319009,0.00013972,2]
[383864935,1757147451456,-480.0,0.00013972,2]
[383864936,1757147451466,-480.0,0.00013972,2]
[383864937,1757147451475,-480.0,0.00013972,2]
[383864938,1757147451486,-480.0,0.00013972,2]
[383864939,1757147451495,-1683.86,0.00013972,2]
[383864940,1757147451505,-1314.45,0.00013972,2]
[383864941,1757147451514,-481.95129524,0.00013972,2]
[383864942,1757147451524,-480.0,0.00013972,2]
[383864943,1757147451534,-480.0,0.00013972,2]
[383864944,1757147451544,-480.0,0.00013972,2]
[383864945,1757147451553,-544.33,0.00013972,2]
[383864946,1757147451563,-480.0,0.00013972,2]
[383864947,1757147451573,-480.0,0.00013972,2]
[383864948,1757147451582,-480.0,0.00013972,2]
[383864949,1757147451592,-566.47,0.00013972,2]
[383864950,1757147451602,-480.0,0.00013972,2]
[383864951,1757147451611,-480.0,0.00013972,2]
[383864952,1757147451621,-356.46715524,0.00013972,2]
[383864953,1757147451630,-480.0,0.00013972,2]
[383864954,1757147451640,-1483.04,0.00013972,2]
[383864955,1757147451650,-480.0,0.00013972,2]
[383864956,1757147451659,-480.0,0.00013972,2]
[383864957,1757147451670,-480.0,0.00013972,2]
[383864958,1757147451679,-706.69,0.00013972,2]
[383864959,1757147451689,-480.0,0.00013972,2]
[383864960,1757147451698,-480.0,0.00013972,2]
[383864961,1757147451708,-596.14,0.00013972,2]
[383864962,1757147451718,-623.43,0.00013972,2]
[383864963,1757147451728,-480.84350196,0.00013972,2]
[383864964,1757147451738,-480.0,0.00013972,2]
[383864965,1757147451747,-542.6,0.00013972,2]
[383864966,1757147451761,-2151.3,0.00013972,2]
[383864967,1757147451771,-480.0,0.00013972,2]
[383864968,1757147451781,-480.0,0.00013972,2]
[383864969,1757147451791,-480.0,0.00013972,2]
[383864970,1757147451802,-480.0,0.00013972,2]
[383864971,1757147451812,-551.18,0.00013972,2]
[383864972,1757147451821,-480.0,0.00013972,2]
[383864973,1757147451832,-480.0,0.00013972,2]
[383864974,1757147451842,-480.0,0.00013972,2]
[383864975,1757147451853,-480.0,0.00013972,2]
[383864976,1757147451863,-9235.82,0.00013972,2]
[383864977,1757147451872,-627.12,0.00013972,2]
[383864978,1757147451882,-901.55,0.00013972,2]
[383864979,1757147451892,-6620.36,0.00013972,2]
[383864980,1757147451901,-480.0,0.00013972,2]
[383864981,1757147451911,-480.0,0.00013972,2]
[383864982,1757147451920,-543.298905,0.00013972,2]
[383864983,1757147451930,-543.298905,0.00013972,2]
[383864984,1757147451940,-543.298905,0.00013972,2]
[383864985,1757147451950,-480.0,0.00013972,2]
[383864986,1757147451959,-480.0,0.00013972,2]
[383864987,1757147451969,-543.298905,0.00013972,2]
[383864988,1757147451979,-480.0,0.00013972,2]
[383864989,1757147451988,-480.0,0.00013972,2]
[383864990,1757147451997,-480.0,0.00013972,2]
[383864991,1757147452007,-480.0,0.00013972,2]
[383864992,1757147452016,-480.0,0.00013972,2]
[383864993,1757147452026,-480.0,0.00013972,2]
[383864994,1757147452035,-151.0,0.00013972,2]
[383864995,1757147452045,-480.0,0.00013972,2]
[383864996,1757147452054,-151.0,0.00013972,2]
[383864997,1757147452064,-480.0,0.00013972,2]
[383864998,1757147452074,-318.879953,0.00013972,2]
[383864999,1757147452083,-482.62873684,0.00013972,2]
[383865000,1757147452092,-481.01,0.00013972,2]
[383865001,1757147452102,-318.879953,0.00013972,2]
[383865002,1757147452111,-151.0,0.00013972,2]
[383865003,1757147452122,-743.595002,0.00013972,2]
[383865004,1757147452131,-480.0,0.00013972,2]
[383865005,1757147452142,-318.879953,0.00013972,2]
[383865006,1757147452153,-480.0,0.00013972,2]
[383865007,1757147452165,-151.0,0.00013972,2]
[383865008,1757147452175,-483.91690469,0.00013972,2]
[383865009,1757147452184,-743.595002,0.00013972,2]
[383865010,1757147452194,-480.0,0.00013972,2]
[383865011,1757147452203,-318.879953,0.00013972,2]
[383865012,1757147452213,-151.0,0.00013972,2]
[383865013,1757147452222,-500.0,0.00013973,2]
[383865014,1757147452231,-500.9338512,0.00013973,2]
[383865015,1757147452241,-502.3731957,0.00013973,2]
[383865016,1757147452250,-501.23191424,0.00013973,2]
[383865017,1757147452259,-500.96789446,0.00013973,2]
[383865018,1757147452269,-500.0,0.00013973,2]
[383865019,1757147452278,-373.40849158,0.00013973,2]
[383865020,1757147452288,-500.0,0.00013973,2]
[383865021,1757147452297,-500.0,0.00013973,2]
[383865022,1757147452307,-500.0,0.00013973,2]
[383865023,1757147452317,-500.0,0.00013973,2]
[383865024,1757147452326,-162.42314402,0.00013973,2]
[383865025,1757147452336,-500.0,0.00013973,2]
[383865026,1757147452345,-151.0,0.00013973,2]
[383865027,1757147452355,-395.333293,0.00013973,2]
[383865028,1757147452365,-151.0,0.00013973,2]
[383865029,1757147452374,-395.333293,0.00013973,2]
[383865030,1757147452383,-151.0,0.00013973,2]
[383865031,1757147452393,-395.333293,0.00013973,2]
[383865032,1757147452402,-151.0,0.00013973,2]
[383865033,1757147452411,-395.333293,0.00013973,2]
[383865034,1757147452420,-196.980646,0.00013973,2]
[383865035,1757147452429,-151.0,0.00013973,2]
[383865036,1757147452438,-151.0,0.00013973,2]
[383865037,1757147452448,-151.0,0.00013973,2]
[383865038,1757147452457,-151.0,0.00013973,2]
[383865039,1757147452466,-151.0,0.00013973,2]
[383865040,1757147452475,-162.278249,0.00013973,2]
[383865041,1757147452484,-154.027374,0.00013973,2]
[383865042,1757147452494,-151.0,0.00013973,2]
[383865043,1757147452503,-151.0,0.00013973,2]
[383865044,1757147452512,-232.3969,0.00013973,2]
[383865045,1757147452522,-151.0,0.00013973,2]
[383865046,1757147452532,-100000.0,0.0001399,2]
[383865047,1757147452541,-151.0,0.0001399,2]
[383865048,1757147452550,-151.0,0.0001399,2]
[383865049,1757147452560,-153.858091,0.0001399,2]
[383865050,1757147452569,-151.0,0.0001399,2]
[383865051,1757147452579,-151.0,0.0001399,2]
[383865052,1757147452588,-151.0,0.0001399,2]
[383865053,1757147452597,-151.0,0.0001399,2]
[383865054,1757147452606,-151.0,0.0001399,2]
[383865055,1757147452615,-151.0,0.0001399,2]
[383865056,1757147452625,-151.0,0.0001399,2]
[383865057,1757147452634,-151.0,0.0001399,2]
[383865058,1757147452644,-277.148617,0.0001399,2]
[383865059,1757147452653,-151.0,0.0001399,2]
[383865060,1757147452662,-162.497089,0.0001399,2]
[383865061,1757147452672,-173.404037,0.0001399,2]
[383865062,1757147452681,-151.0,0.0001399,2]
[383865063,1757147452691,-151.0,0.0001399,2]
[383865064,1757147452700,-151.0,0.0001399,2]
[383865065,1757147452709,-151.0,0.0001399,2]
[383865066,1757147452718,-151.0,0.0001399,2]
[383865067,1757147452728,-743.595002,0.0001399,2]
[383865068,1757147452738,-151.0,0.0001399,2]
[383865069,1757147452749,-743.595002,0.0001399,2]
[383865070,1757147452761,-151.0,0.0001399,2]
[383865071,1757147452771,-151.0,0.00014,2]
[383865072,1757147452780,-160.0,0.00014056,2]
[383865073,1757147452790,-160.0,0.00014056,2]
[383865074,1757147452800,-203.21852024,0.00014057,2]
[383865075,1757147452810,-160.0,0.00014057,2]
[383865076,1757147452820,-160.0,0.00014057,2]
[383865077,1757147452833,-160.0,0.00014057,2]
[383865078,1757147452847,-160.0,0.00014057,2]
[383865079,1757147452857,-160.0,0.00014057,2]
[383865080,1757147452867,-151.0,0.00014091,2]
[383865081,1757147452878,-291.41323008,0.00014091,2]
[383865082,1757147452894,-151.0,0.00014091,2]
[383865083,1757147452904,-151.0,0.00014091,2]
[383865084,1757147452914,-250.0,0.00014091,2]
[383865085,1757147452923,-2105.41764886,0.00014091,2]
[383865086,1757147452933,-151.0,0.00014091,2]
[383865087,1757147452942,-151.0,0.00014091,2]
[383865088,1757147452952,-19292.2273969,0.00014091,2]
[383865089,1757147452961,-250.0,0.00014091,2]
[383865090,1757147452971,-151.0,0.00014091,2]
[383865091,1757147452980,-250.0,0.00014091,2]
[383865092,1757147452990,-202.36888518,0.00014091,2]
[383865093,1757147452999,-250.0,0.00014091,2]
[383865094,1757147453008,-303.3926338,0.00014091,2]
[383865095,1757147453018,-151.0,0.00014091,2]
[383865096,1757147453027,-168.3888056,0.00014091,2]
[383865097,1757147453036,-151.0,0.00014091,2]
[383865098,1757147453046,-151.0,0.00014091,2]
[383865099,1757147453055,-151.0,0.00014091,2]
[383865100,1757147453064,-151.0,0.00014091,2]
[383865101,1757147453074,-151.0,0.00014091,2]
[383865102,1757147453083,-151.0,0.00014091,2]
[383865103,1757147453093,-151.0,0.00014091,2]
[383865104,1757147453103,-151.0,0.00014091,2]
[383865105,1757147453112,-151.0,0.00014091,2]
[383865106,1757147453122,-151.0,0.00014091,2]
[383865107,1757147453132,-151.0,0.00014091,2]
[383865108,1757147453141,-151.0,0.00014091,2]
[383865109,1757147453150,-152.68305188,0.00014091,2]
[383865110,1757147453160,-151.0,0.00014091,2]
[383865111,1757147453169,-151.0,0.00014091,2]
[383865112,1757147453179,-151.0,0.00014091,2]
[383865113,1757147453189,-151.0,0.00014091,2]
[383865114,1757147453198,-151.0,0.00014091,2]
[383865115,1757147453207,-151.0,0.00014091,2]
[383865116,1757147453217,-500.0,0.00014091,2]
[383865117,1757147453227,-151.0,0.000141,2]
[383865118,1757147453236,-500.0,0.00014122,2]
[383865119,1757147453246,-2183.31810187,0.00014146,2]
[383865120,1757147453255,-2264.10087164,0.00014201,2]
[383865121,1757147453264,-400.72478266,0.00014221,2]
[383865122,1757147453274,-521.33749465,0.00014221,2]
[383865123,1757147453284,-502.29795094,0.00014221,2]
[383865124,1757147453293,-1000.0,0.00014221,2]
[383865125,1757147453303,-1000.0,0.00014221,2]
[383865126,1757147453312,-1000.0,0.00014221,2]
[383865127,1757147453321,-1000.0,0.00014221,2]
[383865128,1757147453331,-504.62796832,0.00014221,2]
[383865129,1757147453340,-1000.0,0.00014221,2]
[383865130,1757147453349,-1000.0,0.00014221,2]
[383865131,1757147453359,-1000.0,0.00014221,2]
[383865132,1757147453368,-700.19023901,0.00014221,2]
[383865133,1757147453378,-1000.0,0.00014221,2]
[383865134,1757147453387,-500.73139972,0.00014221,2]
[383865135,1757147453397,-1000.0,0.00014221,2]
[383865136,1757147453406,-503.0665566,0.00014221,2]
[383865137,1757147453416,-1000.0,0.00014221,2]
[383865138,1757147453425,-500.0,0.00014221,2]
[383865139,1757147453436,-501.02794123,0.00014221,2]
[383865140,1757147453445,-500.0,0.00014221,2]
[383865141,1757147453455,-501.67970441,0.00014221,2]
[383865142,1757147453464,-500.0,0.00014221,2]
[383865143,1757147453474,-500.95843424,0.00014221,2]
[383865144,1757147453483,-1000.0,0.00014221,2]
[383865145,1757147453492,-543.298905,0.00014221,2]
[383865146,1757147453502,-543.298905,0.00014221,2]
[383865147,1757147453511,-543.298905,0.00014221,2]
[383865148,1757147453521,-543.298905,0.00014221,2]
[383865149,1757147453530,-318.879953,0.00014221,2]
[383865150,1757147453539,-318.879953,0.00014221,2]
[383865151,1757147453549,-318.879953,0.00014221,2]
[383865152,1757147453559,-318.879953,0.00014221,2]
[383865153,1757147453568,-480.0,0.00014246,2]
[383865154,1757147453577,-480.0,0.00014246,2]
[383865155,1757147453586,-480.0,0.00014246,2]
[383865156,1757147453595,-539.61214933,0.00014246,2]
[383865157,1757147453605,-512.5,0.00014246,2]
[383865158,1757147453615,-678.99,0.00014246,2]
[383865159,1757147453624,-480.0,0.00014246,2]
[383865160,1757147453634,-623.24,0.00014246,2]
[383865161,1757147453643,-480.0,0.00014246,2]
[383865162,1757147453653,-480.0,0.00014246,2]
[383865163,1757147453662,-480.0,0.00014246,2]
[383865164,1757147453672,-482.03621985,0.00014246,2]
[383865165,1757147453682,-480.0,0.00014246,2]
[383865166,1757147453691,-480.0,0.00014246,2]
[383865167,1757147453700,-480.0,0.00014246,2]
[383865168,1757147453710,-495.93,0.00014246,2]
[383865169,1757147453720,-480.0,0.00014246,2]
[383865170,1757147453733,-480.0,0.00014246,2]
[383865171,1757147453743,-480.0,0.00014246,2]
[383865172,1757147453755,-480.0,0.00014246,2]
[383865173,1757147453767,-480.0,0.00014246,2]
[383865174,1757147453778,-494.09355426,0.00014246,2]
[383865175,1757147453788,-480.0,0.00014246,2]
[383865176,1757147453799,-481.04001931,0.00014246,2]
[383865177,1757147453808,-734.04,0.00014246,2]
[383865178,1757147453818,-483.47251557,0.00014246,2]
[383865179,1757147453828,-569.76292404,0.00014246,2]
[383865180,1757147453837,-616.46935791,0.00014246,2]
[383865181,1757147453847,-480.0,0.00014246,2]
[383865182,1757147453857,-231.02744279,0.00014246,2]
[383865183,1757147453867,-480.0,0.00014246,2]
[383865184,1757147453877,-151.0,0.00014246,2]
[383865185,1757147453887,-480.0,0.00014246,2]
[383865186,1757147453897,-480.0,0.00014246,2]
[383865187,1757147453907,-480.0,0.00014246,2]
[383865188,1757147453918,-815.17,0.00014246,2]
[383865189,1757147453928,-480.0,0.00014246,2]
[383865190,1757147454074,-480.0,0.00014246,2]
[383865191,1757147454084,-480.0,0.00014246,2]
[383865192,1757147454094,-151.0,0.00014246,2]
[383865193,1757147454103,-151.0,0.00014246,2]
[383865194,1757147454113,-157.264367,0.00014246,2]
[383865195,1757147454123,-480.0,0.00014246,2]
[383865196,1757147454133,-480.0,0.00014246,2]
[383865197,1757147454142,-480.0,0.00014246,2]
[383865198,1757147454151,-480.0,0.00014246,2]
[383865199,1757147454160,-485.09647214,0.00014246,2]
[383865200,1757147454171,-480.0,0.00014246,2]
[383865201,1757147454181,-480.0,0.00014246,2]
[383865202,1757147454192,-480.0,0.00014246,2]
[383865203,1757147454203,-480.0,0.00014246,2]
[383865204,1757147454214,-480.0,0.00014246,2]
[383865205,1757147454224,-185.13441732,0.00014246,2]
[383865206,1757147454234,-236.86474853,0.00014246,2]
[383865207,1757147454244,-480.0,0.00014246,2]
[383865208,1757147454254,-480.0,0.00014246,2]
[383865209,1757147454264,-480.0,0.00014246,2]
[383865210,1757147454274,-169.31846166,0.00014246,2]
[383865211,1757147454283,-151.0,0.00014246,2]
[383865212,1757147454293,-480.0,0.00014246,2]
[383865213,1757147454303,-151.0,0.00014246,2]
[383865214,1757147454313,-151.0,0.00014246,2]
[383865215,1757147454325,-480.0,0.00014246,2]
[383865216,1757147454337,-480.0,0.00014246,2]
[383865217,1757147454347,-480.0,0.00014246,2]
[383865218,1757147454357,-480.0,0.00014246,2]
[383865219,1757147454366,-480.0,0.00014246,2]
[383865220,1757147454375,-480.0,0.00014246,2]
[383865221,1757147454385,-480.0,0.00014246,2]
[383865222,1757147454395,-480.0,0.00014246,2]
[383865223,1757147454405,-1295.7,0.00014246,2]
[383865224,1757147454415,-480.0,0.00014246,2]
[383865225,1757147454426,-156.328558,0.00014246,2]
[383865226,1757147454435,-480.0,0.00014246,2]
[383865227,1757147454444,-480.0,0.00014246,2]
[383865228,1757147454454,-156.328558,0.00014246,2]
[383865229,1757147454464,-151.0,0.00014246,2]
[383865230,1757147454473,-480.0,0.00014246,2]
[383865231,1757147454483,-480.0,0.00014246,2]
[383865232,1757147454492,-156.328558,0.00014246,2]
[383865233,1757147454502,-480.0,0.00014246,2]
[383865234,1757147454511,-480.0,0.00014246,2]
[383865235,1757147454521,-156.328558,0.00014246,2]
[383865236,1757147454530,-480.0,0.00014246,2]
[383865237,1757147454539,-480.0,0.00014246,2]
[383865238,1757147454550,-480.0,0.00014246,2]
[383865239,1757147454560,-480.0,0.00014246,2]
[383865240,1757147454570,-480.0,0.00014246,2]
[383865241,1757147454579,-480.0,0.00014246,2]
[383865242,1757147454589,-151.325215,0.00014246,2]
[383865243,1757147454599,-480.0,0.00014246,2]
[383865244,1757147454610,-480.0,0.00014246,2]
[383865245,1757147454619,-480.0,0.00014246,2]
[383865246,1757147454631,-151.0,0.00014246,2]
[383865247,1757147454641,-480.0,0.00014246,2]
[383865248,1757147454651,-480.0,0.00014246,2]
[383865249,1757147454661,-480.0,0.00014246,2]
[383865250,1757147454672,-480.0,0.00014246,2]
[383865251,1757147454683,-480.0,0.00014246,2]
[383865252,1757147454693,-624.02,0.00014246,2]
[383865253,1757147454703,-480.0,0.00014246,2]
[383865254,1757147454714,-480.0,0.00014246,2]
[383865255,1757147454725,-480.0,0.00014246,2]
[383865256,1757147454736,-480.0,0.00014246,2]
[383865257,1757147454745,-480.0,0.00014246,2]
[383865258,1757147454756,-723.87,0.00014246,2]
[383865259,1757147454766,-482.09117241,0.00014246,2]
[383865260,1757147454778,-480.0,0.00014246,2]
[383865261,1757147454787,-652.0,0.00014246,2]
[383865262,1757147454798,-531.73942943,0.00014246,2]
[383865263,1757147454808,-151.0,0.00014246,2]
[383865264,1757147454817,-402.482389,0.00014246,2]
[383865265,1757147454827,-402.482389,0.00014246,2]
[383865266,1757147454837,-480.0,0.00014246,2]
[383865267,1757147454846,-402.482389,0.00014246,2]
[383865268,1757147454858,-546.81,0.00014246,2]
[383865269,1757147454869,-402.482389,0.00014246,2]
[383865270,1757147454880,-480.0,0.00014246,2]
[383865271,1757147454892,-480.0,0.00014246,2]
[383865272,1757147454902,-480.0,0.00014246,2]
[383865273,1757147454913,-480.0,0.00014246,2]
[383865274,1757147454923,-480.0,0.00014246,2]
[383865275,1757147454934,-151.0,0.00014246,2]
[383865276,1757147454944,-156.967435,0.00014246,2]
[383865277,1757147454954,-151.0,0.00014246,2]
[383865278,1757147454963,-208.98692899,0.00014246,2]
[383865279,1757147454974,-480.0,0.00014246,2]
[383865280,1757147454984,-480.0,0.00014246,2]
[383865281,1757147454995,-480.0,0.00014246,2]
[383865282,1757147455006,-946.64,0.00014246,2]
[383865283,1757147455017,-480.0,0.00014246,2]
[383865284,1757147455027,-480.0,0.00014246,2]
[383865285,1757147455037,-480.0,0.00014246,2]
[383865286,1757147455047,-151.0,0.00014246,2]
[383865287,1757147455058,-480.0,0.00014246,2]
[383865288,1757147455069,-480.0,0.00014246,2]
[383865289,1757147455078,-480.0,0.00014246,2]
[383865290,1757147455089,-151.0,0.00014246,2]
[383865291,1757147455098,-480.0,0.00014246,2]
[383865292,1757147455107,-480.0,0.00014246,2]
[383865293,1757147455117,-480.0,0.00014246,2]
[383865294,1757147455126,-480.0,0.00014246,2]
[383865295,1757147455136,-480.0,0.00014246,2]
[383865296,1757147455145,-480.0,0.00014246,2]
[383865297,1757147455156,-480.0,0.00014246,2]
[383865298,1757147455167,-480.0,0.00014246,2]
[383865299,1757147455177,-151.0,0.00014246,2]
[383865300,1757147455187,-151.0,0.00014246,2]
[383865301,1757147455196,-151.0,0.00014246,2]
[383865302,1757147455205,-480.0,0.00014246,2]
[383865303,1757147455214,-480.0,0.00014246,2]
[383865304,1757147455224,-480.0,0.00014246,2]
[383865305,1757147455233,-480.0,0.00014246,2]
[383865306,1757147455243,-480.0,0.00014246,2]
[383865307,1757147455252,-480.0,0.00014246,2]
[383865308,1757147455262,-480.0,0.00014246,2]
[383865309,1757147455271,-480.0,0.00014246,2]
[383865310,1757147455280,-480.0,0.00014246,2]
[383865311,1757147455290,-151.0,0.00014246,2]
[383865312,1757147455299,-480.0,0.00014246,2]
[383865313,1757147455308,-480.0,0.00014246,2]
[383865314,1757147455318,-480.0,0.00014246,2]
[383865315,1757147455328,-480.0,0.00014246,2]
[383865316,1757147455337,-560.27,0.00014246,2]
[383865317,1757147455347,-480.0,0.00014246,2]
[383865318,1757147455356,-480.0,0.00014246,2]
[383865319,1757147455366,-480.0,0.00014246,2]
[383865320,1757147455375,-444.04604287,0.00014246,2]
[383865321,1757147455384,-581.16,0.00014246,2]
[383865322,1757147455393,-721.33,0.00014246,2]
[383865323,1757147455403,-480.0,0.00014246,2]
[383865324,1757147455412,-480.0,0.00014246,2]
[383865325,1757147455422,-480.0,0.00014246,2]
[383865326,1757147455433,-480.0,0.00014246,2]
[383865327,1757147455443,-480.0,0.00014246,2]
[383865328,1757147455452,-759.91,0.00014246,2]
[383865329,1757147455462,-480.0,0.00014246,2]
[383865330,1757147455471,-480.0,0.00014246,2]
[383865331,1757147455480,-480.0,0.00014246,2]
[383865332,1757147455489,-480.0,0.00014246,2]
[383865333,1757147455498,-480.0,0.00014246,2]
[383865334,1757147455507,-480.0,0.00014246,2]
[383865335,1757147455516,-1707.48,0.00014246,2]
[383865336,1757147455525,-480.0,0.00014246,2]
[383865337,1757147455534,-415.0622428,0.00014246,2]
[383865338,1757147455543,-480.0,0.00014246,2]
[383865339,1757147455553,-480.0,0.00014246,2]
[383865340,1757147455562,-480.0,0.00014246,2]
[383865341,1757147455571,-482.28967182,0.00014246,2]
[383865342,1757147455580,-480.0,0.00014246,2]
[383865343,1757147455590,-480.0,0.00014246,2]
[383865344,1757147455599,-223.17557535,0.00014246,2]
[383865345,1757147455608,-480.0,0.00014246,2]
[383865346,1757147455618,-480.0,0.00014246,2]
[383865347,1757147455627,-689.36,0.00014246,2]
[383865348,1757147455637,-851.74,0.00014246,2]
[383865349,1757147455646,-480.0,0.00014246,2]
[383865350,1757147455655,-480.0,0.00014246,2]
[383865351,1757147455665,-480.0,0.00014246,2]
[383865352,1757147455674,-847.95,0.00014246,2]
[383865353,1757147455683,-253.18989756,0.00014246,2]
[383865354,1757147455693,-480.0,0.00014246,2]
[383865355,1757147455703,-480.0,0.00014246,2]
[383865356,1757147455712,-689.64,0.00014246,2]
[383865357,1757147455722,-901.03,0.00014246,2]
[383865358,1757147455730,-1143.02,0.00014246,2]
[383865359,1757147455740,-480.0,0.00014246,2]
[383865360,1757147455750,-550.95,0.00014246,2]
[383865361,1757147455763,-494.34473565,0.00014246,2]
[383865362,1757147455773,-480.0,0.00014246,2]
[383865363,1757147455783,-480.0,0.00014246,2]
[383865364,1757147455792,-549.32,0.00014246,2]
[383865365,1757147455802,-258.75297376,0.00014246,2]
[383865366,1757147455811,-480.0,0.00014246,2]
[383865367,1757147455820,-230.74040021,0.00014246,2]
[383865368,1757147455830,-480.0,0.00014246,2]
[383865369,1757147455840,-480.0,0.00014246,2]
[383865370,1757147455851,-4490.14,0.00014246,2]
[383865371,1757147455860,-480.0,0.00014246,2]
[383865372,1757147455870,-480.0,0.00014246,2]
[383865373,1757147455880,-2293.57,0.00014246,2]
[383865374,1757147455889,-480.0,0.00014246,2]
[383865375,1757147455899,-480.0,0.00014246,2]
[383865376,1757147455908,-480.0,0.00014246,2]
[383865377,1757147455917,-151.0,0.00014246,2]
[383865378,1757147455927,-480.0,0.00014246,2]
[383865379,1757147455936,-480.0,0.00014246,2]
[383865380,1757147455945,-151.0,0.00014246,2]
[383865381,1757147455954,-480.0,0.00014246,2]
[383865382,1757147455966,-1885.91,0.00014246,2]
[383865383,1757147455975,-480.0,0.00014246,2]
[383865384,1757147455985,-151.0,0.00014246,2]
[383865385,1757147455994,-515.91,0.00014246,2]
[383865386,1757147456004,-1956.11,0.00014246,2]
[383865387,1757147456013,-480.0,0.00014246,2]
[383865388,1757147456022,-480.0,0.00014246,2]
[383865389,1757147456031,-480.0,0.00014246,2]
[383865390,1757147456041,-480.0,0.00014246,2]
[383865391,1757147456050,-151.0,0.00014246,2]
[383865392,1757147456059,-151.978713,0.00014246,2]
[383865393,1757147456069,-151.0,0.00014246,2]
[383865394,1757147456078,-844.54,0.00014246,2]
[383865395,1757147456087,-151.0,0.00014246,2]
[383865396,1757147456096,-2632.35,0.00014246,2]
[383865397,1757147456106,-480.0,0.00014246,2]
[383865398,1757147456117,-550.33,0.00014246,2]
[383865399,1757147456127,-151.0,0.00014246,2]
[383865400,1757147456136,-480.0,0.00014246,2]
[383865401,1757147456146,-480.0,0.00014246,2]
[383865402,1757147456156,-480.0,0.00014246,2]
[383865403,1757147456167,-585.17229804,0.00014246,2]
[383865404,1757147456177,-480.0,0.00014246,2]
[383865405,1757147456187,-480.0,0.00014246,2]
[383865406,1757147456196,-480.0,0.00014246,2]
[383865407,1757147456206,-1990.88,0.00014246,2]
[383865408,1757147456216,-480.0,0.00014246,2]